bitfinex/quotes_BTCUSD_20240605
["timestamp","ask_amount","ask_price","bid_price","bid_amount"]
[1717569786600,0.2326,71095.0,71094.0,1.10562712]
[1717569786733,0.2326,71095.0,71094.0,1.11962712]
[1717569787079,0.2326,71095.0,71094.0,1.18830657]
[1717569787282,0.2326,71095.0,71094.0,1.21858949]
[1717569787515,0.2326,71095.0,71094.0,1.23258949]
[1717569787840,0.2326,71095.0,71094.0,1.20230657]
[1717569788534,0.2326,71095.0,71094.0,1.23258952]
[1717569789854,0.2468669,71095.0,71094.0,0.89709281]
[1717569790027,0.2468669,71095.0,71094.0,1.21662686]
[1717569790231,0.2326,71095.0,71094.0,1.21662686]
[1717569790429,0.2326,71095.0,71094.0,1.20230657]
[1717569790846,0.2326,71095.0,71094.0,1.30739843]
[1717569791049,0.2326,71095.0,71094.0,1.20230657]
[1717569791449,0.2326,71095.0,71094.0,1.13380657]
[1717569791674,0.2326,71095.0,71094.0,1.20230657]
[1717569793399,0.2468669,71095.0,71094.0,0.85248957]
[1717569793817,0.2468669,71095.0,71094.0,0.92098957]
[1717569794093,0.2468669,71095.0,71094.0,1.00506702]
[1717569795145,0.2326,71095.0,71094.0,0.93656702]
[1717569795349,0.2326,71095.0,71094.0,1.00506702]
[1717569795533,0.2468669,71095.0,71094.0,1.00506702]
[1717569797006,0.2468669,71095.0,71094.0,0.92098957]
[1717569797130,0.2468669,71095.0,71094.0,0.82098957]
[1717569797333,0.2468669,71095.0,71094.0,0.37117257]
[1717569797334,0.2568669,71095.0,71094.0,0.37117257]
[1717569797618,0.2568669,71095.0,71094.0,0.23051457]
[1717569797619,0.2468669,71095.0,71094.0,0.23051457]
[1717569797861,0.26467816,71095.0,71094.0,0.23051457]
[1717569799296,0.26467816,71095.0,71094.0,0.05809564]
[1717569799504,0.0142669,71093.0,71092.0,0.141607]
[1717569799713,0.0142669,71093.0,71090.0,0.000946]
[1717569799714,0.00801136,71091.0,71090.0,0.000946]
[1717569799922,0.03695419,71091.0,71090.0,0.000946]
[1717569800142,0.28660258,71091.0,71090.0,0.000946]
[1717569800378,0.27660258,71091.0,71090.0,0.000946]
[1717569802294,0.02695419,71085.0,71084.0,0.064446]
[1717569802499,0.02695419,71085.0,71084.0,0.20886493]
[1717569802705,0.03466395,71085.0,71084.0,0.20886493]
[1717569802912,0.02695419,71085.0,71084.0,0.20886493]
[1717569804065,0.02695419,71085.0,71084.0,0.21686493]
[1717569804242,0.03466395,71085.0,71084.0,0.21686493]
[1717569804677,0.11256395,71085.0,71084.0,0.15241893]
[1717569804878,0.11256395,71085.0,71084.0,0.16041893]
[1717569804879,0.26946395,71085.0,71084.0,0.16041893]
[1717569805049,0.26946395,71085.0,71084.0,0.30109693]
[1717569806405,0.26946395,71085.0,71084.0,0.16041893]
[1717569806623,0.00770976,71085.0,71084.0,0.58391722]
[1717569806847,0.0142669,71101.0,71084.0,0.58391722]
[1717569806848,0.082,71100.0,71097.0,0.140652]
[1717569807054,0.02781083,71098.0,71097.0,0.35357093]
[1717569807261,0.0200559,71098.0,71097.0,0.35357093]
[1717569807694,0.02782156,71098.0,71097.0,0.35357093]
[1717569808366,0.02782156,71098.0,71097.0,0.35457093]
[1717569808702,0.02782156,71098.0,71097.0,0.35357093]
[1717569808908,0.04208846,71098.0,71097.0,0.35357093]
[1717569809146,0.04208846,71098.0,71097.0,0.36757093]
[1717569809401,0.02782156,71098.0,71097.0,0.36757093]
[1717569809548,0.04208846,71098.0,71097.0,0.35357093]
[1717569810347,0.04208846,71098.0,71097.0,0.28507093]
[1717569810954,0.04208846,71098.0,71097.0,0.35357093]
[1717569811153,0.04208846,71098.0,71097.0,0.28507093]
[1717569811361,0.04208846,71098.0,71097.0,0.36757093]
[1717569811584,0.04208846,71098.0,71097.0,0.29907093]
[1717569811784,0.04208846,71098.0,71097.0,0.31307093]
[1717569812137,0.04208846,71098.0,71097.0,0.38157093]
[1717569812879,0.04208846,71098.0,71097.0,0.168652]
[1717569813286,0.04208846,71098.0,71097.0,0.237152]
[1717569814081,0.04208846,71098.0,71097.0,0.168652]
[1717569816087,0.04208846,71098.0,71097.0,0.31307093]
[1717569816308,0.02782156,71098.0,71097.0,0.31307093]
[1717569816542,0.02782156,71098.0,71097.0,0.59437593]
[1717569817136,0.0200559,71098.0,71097.0,0.59437593]
[1717569818529,0.0200559,71098.0,71097.0,0.66287593]
[1717569819821,0.0190559,71098.0,71097.0,0.66287593]
[1717569820786,0.02687818,71098.0,71097.0,0.66287593]
[1717569825159,0.02687818,71098.0,71097.0,0.59437593]
[1717569825374,0.02687818,71098.0,71097.0,0.66287593]
[1717569826795,0.04114508,71098.0,71097.0,0.66287593]
[1717569827606,0.28234508,71098.0,71097.0,0.31307093]
[1717569827804,0.28234508,71098.0,71097.0,0.38157093]
[1717569828007,0.28134508,71098.0,71097.0,0.38157093]
[1717569828312,0.28134508,71098.0,71097.0,0.66287593]
[1717569828861,0.28134508,71098.0,71097.0,0.38157093]
[1717569829664,0.28134508,71098.0,71097.0,0.31307093]
[1717569829872,0.28134508,71098.0,71097.0,0.38157093]
[1717569835187,0.28134508,71098.0,71097.0,0.66287593]
[1717569835390,0.12104508,71098.0,71097.0,0.66287593]
[1717569836953,0.02587818,71098.0,71097.0,0.66287593]
[1717569837384,0.0180559,71098.0,71097.0,0.66287593]
[1717569837893,0.0180559,71098.0,71097.0,1.12458093]
[1717569839275,0.0180559,71098.0,71097.0,1.11058093]
[1717569839721,0.0180559,71098.0,71097.0,1.12458093]
[1717569840120,0.0180559,71098.0,71097.0,1.11058093]
[1717569840521,0.0180559,71098.0,71097.0,1.11470846]
[1717569840782,0.0180559,71098.0,71097.0,1.11058093]
[1717569841007,0.0180559,71098.0,71097.0,1.12458093]
[1717569841385,0.0180559,71098.0,71097.0,1.03018093]
[1717569841563,0.0180559,71098.0,71097.0,1.27378093]
[1717569841904,0.0180559,71098.0,71097.0,1.28778093]
[1717569843550,0.0180559,71098.0,71097.0,1.29190846]
[1717569843759,0.0180559,71098.0,71097.0,1.28778093]
[1717569844600,0.0180559,71098.0,71097.0,1.56908593]
[1717569844808,0.0180559,71098.0,71097.0,1.57321346]
[1717569846264,0.0180559,71098.0,71097.0,1.56908593]
[1717569846467,0.0180559,71098.0,71097.0,1.57321346]
[1717569847249,0.0180559,71098.0,71097.0,1.61516342]
[1717569848483,0.0180559,71098.0,71097.0,1.60646342]
[1717569848868,0.0180559,71098.0,71097.0,1.66451346]
[1717569849079,0.0180559,71098.0,71097.0,1.74841339]
[1717569850290,0.0180559,71098.0,71097.0,1.66451346]
[1717569850951,0.0180559,71098.0,71097.0,1.76938837]
[1717569851154,0.0180559,71098.0,71097.0,1.66451346]
[1717569851328,0.0180559,71098.0,71097.0,1.66545946]
[1717569851676,0.0180559,71098.0,71097.0,1.69573987]
[1717569853426,0.0180559,71098.0,71097.0,1.89360098]
[1717569853889,0.0180559,71098.0,71097.0,1.87960098]
[1717569854315,0.0180559,71098.0,71097.0,1.83532057]
[1717569854579,0.0180559,71098.0,71097.0,1.84932057]
[1717569855134,0.0180559,71098.0,71097.0,1.86332057]
[1717569855555,0.0180559,71098.0,71097.0,1.87732057]
[1717569855766,0.0180559,71098.0,71097.0,1.67945946]
[1717569855998,0.0180559,71098.0,71097.0,1.66545946]
[1717569856387,0.0180559,71098.0,71097.0,1.67945946]
[1717569857204,0.0180559,71098.0,71097.0,1.65145946]
[1717569857817,0.0180559,71098.0,71097.0,1.66545946]
[1717569858353,0.0180559,71098.0,71097.0,1.65145946]
[1717569858757,0.0180559,71098.0,71097.0,1.66545946]
[1717569858964,0.0180559,71098.0,71097.0,1.65145946]
[1717569859340,0.0180559,71098.0,71097.0,1.84932057]
[1717569859542,0.0180559,71098.0,71097.0,1.86332057]
[1717569860314,0.0180559,71098.0,71097.0,1.84932057]
[1717569860513,0.0180559,71098.0,71097.0,1.65145946]
[1717569861341,0.0180559,71098.0,71097.0,1.63745946]
[1717569861826,0.0180559,71098.0,71097.0,1.65145946]
[1717569862284,0.0180559,71098.0,71097.0,1.66545946]
[1717569862430,0.0180559,71098.0,71097.0,1.68351546]
[1717569865687,1e-08,71098.0,71097.0,1.68351546]
[1717569868331,1e-08,71098.0,71097.0,1.71379049]
[1717569868517,1e-08,71098.0,71097.0,1.76746139]
[1717569868919,1e-08,71098.0,71097.0,1.78844788]
[1717569869658,1e-08,71098.0,71097.0,1.68351546]
[1717569871363,1e-08,71098.0,71097.0,1.78844788]
[1717569871564,1e-08,71098.0,71097.0,1.81872822]
[1717569872374,1e-08,71098.0,71097.0,1.7137958]
[1717569872994,1e-08,71098.0,71097.0,1.81874018]
[1717569873193,1e-08,71098.0,71097.0,1.81874543]
[1717569873427,1e-08,71098.0,71097.0,1.7137958]
[1717569873599,1e-08,71098.0,71097.0,1.81874758]
[1717569873948,1e-08,71098.0,71097.0,1.7137958]
[1717569875361,1e-08,71098.0,71097.0,1.81876251]
[1717569875567,1e-08,71098.0,71097.0,1.73996251]
[1717569875818,1e-08,71098.0,71097.0,1.6349958]
[1717569877620,0.004,71099.0,71098.0,0.803252]
[1717569877820,0.004,71099.0,71098.0,1.19725731]
[1717569878111,0.004,71099.0,71098.0,1.16697697]
[1717569878282,0.004,71099.0,71098.0,1.19726077]
[1717569879241,0.004,71099.0,71098.0,1.2013883]
[1717569879858,0.004,71099.0,71098.0,1.2153883]
[1717569880084,0.004,71099.0,71098.0,1.11040255]
[1717569881672,0.004,71099.0,71098.0,1.10627502]
[1717569882709,0.004,71099.0,71098.0,1.10627502]
[1717569882928,0.004,71099.0,71098.0,1.09195473]
[1717569883470,0.2509669,71099.0,71098.0,0.44335273]
[1717569883638,0.2509669,71099.0,71098.0,0.48156893]
[1717569883839,0.2593583,71099.0,71098.0,0.56564583]
[1717569884036,0.2593583,71099.0,71098.0,0.48156893]
[1717569884037,0.2509669,71099.0,71098.0,0.48156893]
[1717569884217,0.2593583,71099.0,71098.0,0.41306893]
[1717569884429,0.2593583,71099.0,71098.0,0.48156893]
[1717569884848,0.2509669,71099.0,71098.0,0.26865]
[1717569885091,0.2509669,71099.0,71098.0,0.128]
[1717569885392,0.2593583,71099.0,71098.0,0.36756893]
[1717569885534,0.2593583,71099.0,71098.0,0.48156893]
[1717569885936,0.2593583,71099.0,71098.0,0.46756893]
[1717569886409,0.2602183,71099.0,71098.0,0.46756893]
[1717569886598,0.2602183,71099.0,71098.0,0.48156893]
[1717569887366,0.2602183,71099.0,71098.0,0.46756893]
[1717569887767,0.2602183,71099.0,71098.0,0.48156893]
[1717569888385,0.2602183,71099.0,71098.0,0.46756893]
[1717569888589,0.2602183,71099.0,71098.0,0.45356893]
[1717569888806,0.2602183,71099.0,71098.0,0.46756893]
[1717569890927,0.2602183,71099.0,71098.0,0.48156893]
[1717569893093,0.1090183,71099.0,71098.0,0.48156893]
[1717569899733,0.0132514,71099.0,71098.0,0.48156893]
[1717569900199,0.0132514,71099.0,71098.0,0.76286993]
[1717569900399,0.0132514,71099.0,71098.0,0.86699746]
[1717569900605,0.00486,71099.0,71098.0,1.22979846]
[1717569900811,0.00486,71099.0,71098.0,0.98635684]
[1717569901032,0.00486,71099.0,71098.0,1.00730508]
[1717569901378,0.00486,71099.0,71098.0,0.94436993]
[1717569901584,0.00486,71099.0,71098.0,0.98632975]
[1717569901817,0.00486,71099.0,71098.0,1.22567093]
[1717569902028,0.00486,71099.0,71098.0,0.94436993]
[1717569902236,0.00486,71099.0,71098.0,1.22567093]
[1717569902410,0.00486,71099.0,71098.0,1.28860608]
[1717569903238,0.00486,71099.0,71098.0,1.29273361]
[1717569903661,0.00486,71099.0,71098.0,0.82580508]
[1717569903817,0.00486,71099.0,71098.0,0.92580508]
[1717569904019,0.00486,71099.0,71098.0,1.20710608]
[1717569904224,0.00486,71099.0,71098.0,1.18614622]
[1717569904450,0.00486,71099.0,71098.0,1.14417093]
[1717569904887,0.2638269,71099.0,71098.0,0.41306893]
[1717569905078,0.2738269,71099.0,71098.0,0.028]
[1717569905247,0.29511077,71099.0,71098.0,0.028]
[1717569906155,0.28511077,71099.0,71098.0,0.028]
[1717569906992,0.29511077,71099.0,71098.0,0.028]
[1717569913579,0.50425877,71099.0,71098.0,0.028]
[1717569914579,0.70425877,71099.0,71098.0,0.028]
[1717569916047,0.70425877,71099.0,71098.0,0.014]
[1717569916253,0.70425877,71099.0,71098.0,0.021]
[1717569917267,0.70425877,71099.0,71098.0,0.007]
[1717569917696,0.70425877,71099.0,71098.0,0.014]
[1717569917897,0.98555577,71099.0,71098.0,0.014]
[1717569918498,1.1299747,71099.0,71098.0,0.014]
[1717569918938,1.46285056,71099.0,71098.0,0.014]
[1717569919353,1.46285056,71099.0,71098.0,0.007]
[1717569919557,1.16740619,71098.0,71097.0,0.000946]
[1717569919765,1.63563222,71098.0,71097.0,0.000946]
[1717569919941,2.02537227,71098.0,71097.0,0.000946]
[1717569920173,2.02537227,71098.0,71065.0,0.000946]
[1717569920174,0.65898319,71085.0,71065.0,0.000946]
[1717569920383,0.96758319,71085.0,71065.0,0.000946]
[1717569920585,0.97593856,71085.0,71065.0,0.000946]
[1717569921959,0.97893856,71085.0,71065.0,0.000946]
[1717569922820,0.98193856,71085.0,71065.0,0.000946]
[1717569923176,1.40771049,71085.0,71065.0,0.000946]
[1717569923392,1.45928751,71085.0,71065.0,0.000946]
[1717569923914,1.17793451,71085.0,71065.0,0.000946]
[1717569924087,1.12635749,71085.0,71065.0,0.000946]
[1717569928359,1.12639749,71085.0,71065.0,0.000946]
[1717569930789,1.40775049,71085.0,71065.0,0.000946]
[1717569930989,1.12639749,71085.0,71065.0,0.000946]
[1717569933999,1.79012062,71085.0,71065.0,0.000946]
[1717569934888,1.75927074,71085.0,71065.0,0.000946]
[1717569935292,1.69077074,71085.0,71065.0,0.000946]
[1717569935753,1.75927074,71085.0,71065.0,0.000946]
[1717569935959,1.75937535,71085.0,71065.0,0.000946]
[1717569936100,0.24365042,71085.0,71068.0,0.140709]
[1717569936308,0.24365042,71085.0,71084.0,0.160146]
[1717569936309,0.23365042,71085.0,71084.0,0.160146]
[1717569936550,0.19202556,71085.0,71084.0,0.160146]
[1717569937888,0.18902556,71085.0,71084.0,0.160146]
[1717569938084,0.04834956,71085.0,71084.0,0.160146]
[1717569938534,0.04834956,71085.0,71084.0,0.166146]
[1717569939320,0.04534956,71085.0,71084.0,0.166146]
[1717569939792,0.04534956,71085.0,71084.0,0.171146]
[1717569939793,0.03534956,71085.0,71084.0,0.171146]
[1717569940015,0.03534956,71085.0,71084.0,0.166146]
[1717569940430,0.03834956,71085.0,71084.0,0.006946]
[1717569940880,0.03834956,71085.0,71084.0,0.000946]
[1717569941067,0.03934956,71085.0,71084.0,0.000946]
[1717569942384,0.03834956,71085.0,71084.0,0.000946]
[1717569943138,0.03534956,71085.0,71084.0,0.000946]
[1717569943544,0.03534956,71085.0,71084.0,0.002946]
[1717569943729,0.03534956,71085.0,71084.0,0.000946]
[1717569944155,0.03534956,71085.0,71084.0,0.003946]
[1717569944629,0.04534956,71085.0,71084.0,0.003946]
[1717569944797,0.04534956,71085.0,71084.0,0.008946]
[1717569945589,0.03534956,71085.0,71084.0,0.008946]
[1717569947279,0.04534956,71085.0,71084.0,0.008946]
[1717569947695,0.03534956,71085.0,71084.0,0.008946]
[1717569948253,0.03434956,71085.0,71084.0,0.008946]
[1717569949480,0.03434956,71085.0,71084.0,0.003946]
[1717569949685,0.02699419,71085.0,71084.0,0.003946]
[1717569950036,0.02699419,71085.0,71084.0,0.007946]
[1717569950239,0.02699419,71085.0,71084.0,0.004946]
[1717569950613,0.02699419,71085.0,71084.0,0.001946]
[1717569951056,0.02699419,71085.0,71084.0,0.000946]
[1717569951225,0.02699419,71085.0,71084.0,0.005946]
[1717569951424,0.02699419,71085.0,71084.0,0.008946]
[1717569952231,0.03368453,71085.0,71084.0,0.008946]
[1717569952816,0.04368453,71085.0,71084.0,0.008946]
[1717569953024,0.03368453,71085.0,71084.0,0.008946]
[1717569953689,0.04368453,71085.0,71084.0,0.008946]
[1717569956277,0.03368453,71085.0,71084.0,0.008946]
[1717569957422,0.04368453,71085.0,71084.0,0.005946]
[1717569957641,0.03368453,71085.0,71084.0,0.005946]
[1717569957821,0.04368453,71085.0,71084.0,0.007946]
[1717569958224,0.03368453,71085.0,71084.0,0.002946]
[1717569958839,0.03368453,71085.0,71084.0,0.006946]
[1717569961394,0.04368453,71085.0,71084.0,0.006946]
[1717569961807,0.03368453,71085.0,71084.0,0.006946]
[1717569962589,0.03368453,71085.0,71084.0,0.002946]
[1717569962810,0.03368453,71085.0,71084.0,0.000946]
[1717569963163,0.03368453,71085.0,71084.0,0.006946]
[1717569963378,0.04368453,71085.0,71084.0,0.006946]
[1717569964002,0.04368453,71085.0,71084.0,0.004946]
[1717569964634,0.48606053,71085.0,71084.0,0.004946]
[1717569965054,0.53713194,71085.0,71084.0,0.004946]
[1717569965274,0.53713194,71085.0,71084.0,0.005946]
[1717569965476,0.53718763,71085.0,71084.0,0.005946]
[1717569965699,0.53718763,71085.0,71084.0,0.001946]
[1717569966557,0.53718763,71085.0,71084.0,0.002946]
[1717569966766,0.46868763,71085.0,71084.0,0.002946]
[1717569967066,0.53718763,71085.0,71084.0,0.000946]
[1717569968933,0.53718763,71085.0,71084.0,0.001946]
[1717569970456,0.57937678,71085.0,71084.0,0.001946]
[1717569971674,0.53729408,71085.0,71084.0,0.001946]
[1717569971978,0.57939743,71085.0,71084.0,0.001946]
[1717569972160,0.53729408,71085.0,71084.0,0.001946]
[1717569972362,0.68171301,71085.0,71084.0,0.001946]
[1717569972570,0.72381887,71085.0,71084.0,0.001946]
[1717569973201,0.68171301,71085.0,71084.0,0.000946]
[1717569973802,0.68171301,71085.0,71084.0,0.001946]
[1717569974006,0.73182045,71085.0,71084.0,0.002946]
[1717569974213,0.73182045,71085.0,71084.0,0.001946]
[1717569974425,0.73482045,71085.0,71084.0,0.002946]
[1717569975363,0.72682045,71085.0,71084.0,0.001946]
[1717569975612,0.68471301,71085.0,71084.0,0.001946]
[1717569977298,0.74786392,71085.0,71084.0,0.001946]
[1717569977489,0.68471301,71085.0,71084.0,0.001946]
[1717569978246,0.74786392,71085.0,71084.0,0.001946]
[1717569978744,0.69371301,71085.0,71084.0,0.002946]
[1717569979282,0.60606392,71085.0,71084.0,0.002946]
[1717569979486,0.54291301,71085.0,71084.0,0.002946]
[1717569980358,0.60606392,71085.0,71084.0,0.002946]
[1717569981125,0.54291301,71085.0,71084.0,0.002946]
[1717569981639,0.74291301,71085.0,71084.0,0.002946]
[1717569981850,0.67441301,71085.0,71084.0,0.002946]
[1717569982021,0.54291301,71085.0,71084.0,0.002946]
[1717569982608,0.89931301,71085.0,71084.0,0.002946]
[1717569983891,1.00456452,71085.0,71084.0,0.002946]
[1717569984355,0.69931301,71085.0,71084.0,0.002946]
[1717569984465,0.80456452,71085.0,71084.0,0.002946]
[1717569984869,0.69931301,71085.0,71084.0,0.002946]
[1717569985726,0.89931301,71085.0,71084.0,0.002946]
[1717569986144,1.28591752,71085.0,71084.0,0.002946]
[1717569986761,1.08591752,71085.0,71084.0,0.002946]
[1717569987166,0.64807946,71085.0,71084.0,0.002946]
[1717569987371,0.80462391,71085.0,71084.0,0.002946]
[1717569987542,0.62714392,71085.0,71084.0,0.002946]
[1717569987926,0.62800392,71085.0,71084.0,0.002946]
[1717569988943,0.62800471,71085.0,71084.0,0.002946]
[1717569989349,0.54371095,71085.0,71084.0,0.002946]
[1717569989551,0.54369429,71085.0,71084.0,0.002946]
[1717569990799,0.62798757,71085.0,71084.0,0.002946]
[1717569991014,0.64906725,71085.0,71084.0,0.002946]
[1717569991440,0.54369429,71085.0,71084.0,0.002946]
[1717569992368,0.49253946,71085.0,71084.0,0.002946]
[1717569992532,0.54370353,71085.0,71084.0,0.002946]
[1717569993112,0.64907649,71085.0,71084.0,0.002946]
[1717569994556,0.64906734,71085.0,71084.0,0.002946]
[1717569994973,0.58056734,71085.0,71084.0,0.002946]
[1717569995179,0.64906734,71085.0,71084.0,0.002946]
[1717569995627,0.54369438,71085.0,71084.0,0.002946]
[1717569996164,0.64906734,71085.0,71084.0,0.002946]
[1717569996381,0.54369438,71085.0,71084.0,0.002946]
[1717569997944,0.93042034,71085.0,71084.0,0.002946]
[1717569998191,0.93042498,71085.0,71084.0,0.002946]
[1717569999457,0.82504738,71085.0,71084.0,0.002946]
[1717570001360,0.90936224,71085.0,71084.0,0.002946]
[1717570001973,0.82504738,71085.0,71084.0,0.002946]
[1717570002198,0.90936224,71085.0,71084.0,0.002946]
[1717570002457,0.82504738,71085.0,71084.0,0.002946]
[1717570006268,0.95654738,71085.0,71084.0,0.002946]
[1717570006497,0.84907198,71085.0,71084.0,0.002946]
[1717570006720,0.64907198,71085.0,71084.0,0.002946]
[1717570007954,0.84907198,71085.0,71084.0,0.002946]
[1717570008156,1.61177798,71085.0,71084.0,0.002946]
[1717570008362,2.09861918,71085.0,71084.0,0.002946]
[1717570008583,2.15617418,71085.0,71084.0,0.002946]
[1717570009057,2.57978694,71085.0,71084.0,0.002946]
[1717570009639,2.5798872,71085.0,71084.0,0.002946]
[1717570011222,2.43752718,71085.0,71084.0,0.002946]
[1717570015809,2.51333835,71085.0,71084.0,0.002946]
[1717570017449,2.43752718,71085.0,71084.0,0.002946]
[1717570021616,2.42832765,71085.0,71084.0,0.002946]
[1717570022208,2.70968065,71085.0,71084.0,0.002946]
[1717570022210,2.42832765,71085.0,71084.0,0.002946]
[1717570022435,2.42163731,71085.0,71084.0,0.002946]
[1717570023627,2.41263731,71085.0,71084.0,0.001946]
[1717570024005,2.40963731,71085.0,71084.0,0.000946]
[1717570024629,2.43263731,71085.0,71084.0,0.002946]
[1717570026248,2.57416172,71085.0,71084.0,0.002946]
[1717570026457,2.432086,71085.0,71084.0,0.002946]
[1717570026659,2.38119186,71085.0,71084.0,0.002946]
[1717570026857,2.42424664,71085.0,71084.0,0.002946]
[1717570027275,2.56630707,71085.0,71084.0,0.002946]
[1717570027497,2.42424664,71085.0,71084.0,0.002946]
[1717570028110,1.51177319,71079.0,71078.0,0.000946]
[1717570028377,2.49238119,71079.0,71078.0,0.000946]
[1717570031250,2.61861134,71079.0,71078.0,0.000946]
[1717570031497,2.40267565,71079.0,71078.0,0.000946]
[1717570031937,2.34912065,71079.0,71078.0,0.000946]
[1717570032151,2.49423852,71079.0,71078.0,0.000946]
[1717570032376,2.40665324,71079.0,71078.0,0.000946]
[1717570032588,2.40265324,71079.0,71078.0,0.000946]
[1717570032833,2.39665324,71079.0,71078.0,0.000946]
[1717570033052,2.41065324,71079.0,71078.0,0.001946]
[1717570033685,2.39665324,71079.0,71078.0,0.000946]
[1717570034343,2.27042309,71079.0,71078.0,0.000946]
[1717570034591,2.27027348,71079.0,71078.0,0.000946]
[1717570034824,2.31403188,71079.0,71078.0,0.000946]
[1717570035021,2.21274089,71079.0,71078.0,0.000946]
[1717570035440,2.24074089,71079.0,71078.0,0.001946]
[1717570035661,2.29827437,71079.0,71078.0,0.001946]
[1717570036125,2.22674089,71079.0,71078.0,0.001946]
[1717570036341,2.24074089,71079.0,71078.0,0.001946]
[1717570036552,2.42448446,71079.0,71078.0,0.001946]
[1717570037379,2.29827507,71079.0,71078.0,0.001946]
[1717570037599,2.22977507,71079.0,71078.0,0.001946]
[1717570037831,2.29827507,71079.0,71078.0,0.001946]
[1717570038791,2.05237507,71079.0,71078.0,0.001946]
[1717570039261,2.06961005,71079.0,71078.0,0.001946]
[1717570039485,2.43241611,71079.0,71078.0,0.001946]
[1717570040404,2.67518981,71079.0,71078.0,0.001946]
[1717570040829,2.43241611,71079.0,71078.0,0.001946]
[1717570041061,2.6751201,71079.0,71078.0,0.001946]
[1717570041483,2.30621005,71079.0,71078.0,0.001946]
[1717570041684,2.27602391,71079.0,71078.0,0.001946]
[1717570043440,2.39240155,71079.0,71078.0,0.001946]
[1717570043682,2.53751942,71079.0,71078.0,0.001946]
[1717570046178,2.41741707,71079.0,71078.0,0.001946]
[1717570046387,2.53672304,71079.0,71078.0,0.001946]
[1717570047707,2.39160517,71079.0,71078.0,0.001946]
[1717570047885,2.3906217,71079.0,71078.0,0.001946]
[1717570048314,2.3104217,71079.0,71078.0,0.001946]
[1717570049819,2.3926217,71079.0,71078.0,0.001946]
[1717570050046,2.5589217,71079.0,71078.0,0.001946]
[1717570050257,2.60103631,71079.0,71078.0,0.001946]
[1717570050465,1.13050419,71068.0,71067.0,0.1636]
[1717570050681,1.13050419,71068.0,71065.0,0.000946]
[1717570050682,0.47766819,71066.0,71065.0,0.000946]
[1717570050909,0.56769019,71055.0,71054.0,0.2412]
[1717570051123,0.95737456,71055.0,71054.0,0.2412]
[1717570051351,1.38316969,71055.0,71054.0,0.1617]
[1717570051621,0.37769519,71052.0,71051.0,0.1634]
[1717570051896,0.70985638,71052.0,71051.0,0.002]
[1717570052153,1.06657682,71052.0,71051.0,0.002]
[1717570053339,1.17183942,71052.0,71051.0,0.002]
[1717570053571,1.06857682,71052.0,71051.0,0.002]
[1717570054254,0.65919019,71050.0,71049.0,0.1614]
[1717570054485,0.99135938,71050.0,71049.0,0.1614]
[1717570054942,0.99809682,71050.0,71049.0,0.1614]
[1717570055420,0.90334792,71050.0,71049.0,0.1614]
[1717570055604,0.97184792,71050.0,71049.0,0.1614]
[1717570056031,0.95079512,71050.0,71049.0,0.1614]
[1717570056236,0.86659682,71050.0,71049.0,0.1614]
[1717570056450,1.06659682,71050.0,71049.0,0.1614]
[1717570056647,0.86659682,71050.0,71049.0,0.1614]
[1717570056865,0.95079512,71050.0,71049.0,0.1614]
[1717570057250,0.86659682,71050.0,71049.0,0.1614]
[1717570058530,1.06659682,71050.0,71049.0,0.1614]
[1717570058760,0.92971769,71050.0,71049.0,0.1614]
[1717570058987,1.12971769,71050.0,71049.0,0.1614]
[1717570059720,1.06659682,71050.0,71049.0,0.1614]
[1717570059865,0.99809682,71050.0,71049.0,0.1614]
[1717570060081,1.06659682,71050.0,71049.0,0.1614]
[1717570061118,1.06640389,71050.0,71049.0,0.1614]
[1717570061365,0.86640389,71050.0,71049.0,0.1614]
[1717570061520,1.06640389,71050.0,71049.0,0.1614]
[1717570062126,1.12950494,71050.0,71049.0,0.1614]
[1717570063598,1.06640389,71050.0,71049.0,0.1614]
[1717570064209,1.12950253,71050.0,71049.0,0.1614]
[1717570064406,1.06640389,71050.0,71049.0,0.1614]
[1717570064632,1.12950528,71050.0,71049.0,0.1614]
[1717570064830,1.06640389,71050.0,71049.0,0.1614]
[1717570065244,1.12950157,71050.0,71049.0,0.1614]
[1717570065445,1.06640389,71050.0,71049.0,0.1614]
[1717570066230,1.12950286,71050.0,71049.0,0.1614]
[1717570067500,1.06640389,71050.0,71049.0,0.1614]
[1717570067670,0.1650279,71042.0,71041.0,0.004]
[1717570067886,0.24621519,71042.0,71041.0,0.004]
[1717570068104,0.25277473,71042.0,71041.0,0.004]
[1717570068310,0.25277473,71042.0,71041.0,0.2377]
[1717570068688,0.25177473,71042.0,71041.0,0.2377]
[1717570068988,0.25377473,71042.0,71041.0,0.2377]
[1717570069185,0.25277473,71042.0,71041.0,0.2377]
[1717570069593,0.26077473,71042.0,71041.0,0.2377]
[1717570069810,0.25277473,71042.0,71041.0,0.2377]
[1717570070980,0.18427473,71042.0,71041.0,0.2377]
[1717570071180,0.26077473,71042.0,71041.0,0.2377]
[1717570071386,0.25977473,71042.0,71041.0,0.2377]
[1717570072469,0.26577473,71042.0,71041.0,0.2377]
[1717570072676,0.25777473,71042.0,71041.0,0.2377]
[1717570073105,0.26677473,71042.0,71041.0,0.2377]
[1717570074303,0.26077473,71042.0,71041.0,0.2377]
[1717570075118,0.31113142,71042.0,71041.0,0.2377]
[1717570075340,0.24263142,71042.0,71041.0,0.2377]
[1717570075548,0.31113142,71042.0,71041.0,0.2377]
[1717570076316,0.31813142,71042.0,71041.0,0.2377]
[1717570077456,0.31810737,71042.0,71041.0,0.2377]
[1717570078920,0.59963037,71042.0,71041.0,0.2377]
[1717570079985,0.79963037,71042.0,71041.0,0.2377]
[1717570080243,0.59963037,71042.0,71041.0,0.2377]
[1717570080383,0.53113037,71042.0,71041.0,0.2377]
[1717570080583,0.59963037,71042.0,71041.0,0.2377]
[1717570084215,0.59965836,71042.0,71041.0,0.2377]
[1717570087241,0.57322432,71042.0,71041.0,0.2377]
[1717570087474,0.64172432,71042.0,71041.0,0.2377]
[1717570088315,0.64172134,71042.0,71041.0,0.2377]
[1717570089160,0.59961396,71042.0,71041.0,0.2377]
[1717570089856,0.59961602,71042.0,71041.0,0.2377]
[1717570090327,0.52111602,71042.0,71041.0,0.238646]
[1717570090564,0.63173924,71042.0,71041.0,0.238646]
[1717570091500,0.59961602,71042.0,71041.0,0.238646]
[1717570091968,0.58961602,71042.0,71041.0,0.238646]
[1717570092183,0.59961602,71042.0,71041.0,0.238646]
[1717570092412,0.66277709,71042.0,71041.0,0.238646]
[1717570092851,0.65277709,71042.0,71041.0,0.238646]